bitfinex-derivatives/quotes_BTCF0:USTF0_20241122
["timestamp","ask_amount","ask_price","bid_price","bid_amount"]
[1732261515930,0.08289837,99326.0,99316.0,0.02009891]
[1732261516134,0.050283,99323.0,99316.0,0.02009891]
[1732261516338,0.16579674,99326.0,99316.0,0.02009891]
[1732261516539,0.050283,99322.0,99316.0,0.02009891]
[1732261517950,0.16579674,99326.0,99316.0,0.02009891]
[1732261518248,0.050285,99319.0,99316.0,0.02009891]
[1732261518749,0.050285,99318.0,99317.0,0.01906238]
[1732261522445,0.352365,99318.0,99301.0,0.0023]
[1732261522648,0.16579674,99311.0,99293.0,0.12126]
[1732261522842,0.44369837,99320.0,99294.0,0.050297]
[1732261522843,0.050296,99296.0,99294.0,0.050297]
[1732261523244,0.15954535,99301.0,99289.0,0.48032]
[1732261523442,0.050296,99297.0,99289.0,0.3608]
[1732261523640,0.050296,99296.0,99290.0,0.050299]
[1732261523838,0.050296,99296.0,99289.0,0.47976]
[1732261523839,0.050296,99296.0,99295.0,0.02009904]
[1732261524445,0.050296,99296.0,99295.0,0.02148161]
[1732261524644,0.050296,99296.0,99295.0,0.00138257]
[1732261525749,0.050296,99296.0,99295.0,0.00238257]
[1732261526338,0.352416,99296.0,99295.0,0.00538257]
[1732261526948,0.296136,99296.0,99295.0,0.00538257]
[1732261527141,0.050291,99306.0,99295.0,0.00538257]
[1732261527142,0.05029,99308.0,99306.0,0.050291]
[1732261527454,0.3608,99318.0,99307.0,0.30350257]
[1732261527744,0.050288,99313.0,99308.0,0.05029]
[1732261527949,0.0851,99312.0,99307.0,0.00154257]
[1732261528140,0.0851,99312.0,99308.0,0.05029]
[1732261528536,0.0851,99312.0,99310.0,0.00138257]
[1732261528737,0.135388,99312.0,99310.0,0.00138257]
[1732261529546,0.135388,99312.0,99311.0,0.00138257]
[1732261532653,0.135388,99312.0,99311.0,0.05167057]
[1732261532855,0.0851,99312.0,99311.0,0.05167057]
[1732261533153,0.135388,99312.0,99311.0,0.05167057]
[1732261534054,0.135388,99312.0,99311.0,0.00138257]
[1732261536148,0.135388,99312.0,99278.0,0.3608]
[1732261536149,0.30208,99311.0,99278.0,0.3608]
[1732261536349,0.30208,99311.0,99281.0,0.0023]
[1732261536350,0.12636759,99301.0,99281.0,0.0023]
[1732261536651,0.050292,99304.0,99302.0,0.30212]
[1732261536854,0.050292,99304.0,99303.0,0.00138277]
[1732261537052,0.050292,99304.0,99303.0,0.00142277]
[1732261537259,0.050291,99307.0,99303.0,0.00142277]
[1732261537444,0.12636759,99310.0,99303.0,0.00142277]
[1732261537445,0.050292,99304.0,99303.0,0.00142277]
[1732261537649,0.050292,99304.0,99303.0,0.00138277]
[1732261540658,0.411092,99304.0,99303.0,0.00138277]
[1732261543559,0.3608,99304.0,99303.0,0.05167577]
[1732261543762,0.3608,99304.0,99303.0,0.35379577]
[1732261545260,0.3608,99304.0,99303.0,0.30350277]
[1732261545670,0.050291,99306.0,99303.0,0.30350277]
[1732261545962,0.050291,99306.0,99305.0,0.30212]
[1732261547060,0.050291,99306.0,99305.0,0.30350277]
[1732261549558,0.050291,99306.0,99305.0,0.30488532]
[1732261552854,0.08292149,99320.0,99305.0,0.30488532]
[1732261553063,0.050284,99320.0,99319.0,0.30212]
[1732261553362,0.050284,99320.0,99319.0,0.30492532]
[1732261554768,0.050284,99321.0,99319.0,0.30492532]
[1732261554969,0.411082,99323.0,99322.0,0.30212]
[1732261555355,0.411082,99323.0,99322.0,0.30216]
[1732261555574,0.411082,99323.0,99322.0,0.30630763]
[1732261559762,0.050282,99323.0,99322.0,0.30630763]
[1732261560964,0.3608,99326.0,99297.0,0.2026]
[1732261561168,0.050293,99304.0,99302.0,0.050293]
[1732261561370,0.050293,99304.0,99303.0,0.352413]
[1732261561871,0.050293,99304.0,99303.0,0.35379556]
[1732261562070,0.0864,99308.0,99303.0,0.35379556]
[1732261562071,0.050291,99307.0,99305.0,0.050291]
[1732261562371,0.13669,99308.0,99307.0,0.30212]
[1732261562776,0.13669,99308.0,99307.0,0.30354256]
[1732261563873,0.49749,99308.0,99307.0,0.30354256]
[1732261564572,0.13669,99308.0,99307.0,0.30354256]
[1732261564766,0.49749,99308.0,99307.0,0.00142256]
[1732261565665,0.050298,99292.0,99291.0,0.050298]
[1732261566066,0.050298,99292.0,99291.0,0.30212]
[1732261566569,0.1681,99295.0,99280.0,0.02010086]
[1732261566570,0.050302,99286.0,99285.0,0.050302]
[1732261566768,0.3608,99294.0,99280.0,0.02010086]
[1732261567075,0.411097,99294.0,99293.0,0.30216]
[1732261568070,0.411097,99294.0,99293.0,0.30354277]
[1732261569879,0.050297,99294.0,99293.0,0.30354277]
[1732261577277,0.050293,99303.0,99299.0,0.050295]
[1732261577480,0.050293,99303.0,99302.0,0.30212]
[1732261577686,0.050293,99303.0,99302.0,0.30216]
[1732261578080,0.05029,99308.0,99303.0,0.050292]
[1732261578394,0.08292149,99309.0,99307.0,0.30212]
[1732261578585,0.050288,99312.0,99308.0,0.30212]
[1732261578788,0.050288,99312.0,99311.0,0.30212]
[1732261579196,0.16584298,99320.0,99311.0,0.3049253]
[1732261579197,0.050287,99315.0,99311.0,0.3049253]
[1732261579386,0.050286,99315.0,99314.0,0.30212]
[1732261579691,0.050286,99315.0,99314.0,0.30216]
[1732261579992,0.050285,99319.0,99314.0,0.30216]
[1732261580194,0.050285,99319.0,99318.0,0.30212]
[1732261580385,0.050285,99319.0,99318.0,0.30216]
[1732261581295,0.050285,99319.0,99318.0,0.3049253]
[1732261584293,0.050285,99319.0,99318.0,0.30630764]
[1732261585498,0.411085,99319.0,99318.0,0.00418764]
[1732261585696,0.050285,99319.0,99318.0,0.00418764]
[1732261587198,0.16584298,99328.0,99318.0,0.30630764]
[1732261587501,0.16584298,99328.0,99311.0,4e-05]
[1732261587502,0.13320149,99328.0,99327.0,4e-05]
[1732261587801,0.05028,99328.0,99327.0,4e-05]
[1732261588498,0.05028,99328.0,99327.0,0.00418764]
[1732261590803,0.41108,99328.0,99327.0,0.00418764]
[1732261592403,0.050288,99314.0,99313.0,0.050287]
[1732261592605,0.411088,99314.0,99313.0,0.050287]
[1732261592804,0.41120801,99314.0,99313.0,0.352407]
[1732261593006,0.05040801,99314.0,99313.0,0.352407]
[1732261593399,0.05040801,99314.0,99313.0,0.30212]
[1732261593600,0.41120801,99314.0,99313.0,0.30212]
[1732261594295,0.050288,99312.0,99311.0,4e-05]
[1732261594498,0.050288,99312.0,99311.0,0.30216]
[1732261594704,0.05040801,99312.0,99311.0,0.30216]
[1732261594899,0.05040801,99312.0,99311.0,0.00142254]
[1732261603994,0.00012001,99312.0,99311.0,0.00142254]
[1732261604199,0.00012001,99312.0,99311.0,0.35383054]
[1732261605909,0.00012001,99312.0,99311.0,0.30354254]
[1732261606900,0.00012001,99312.0,99311.0,0.35383054]
[1732261611205,0.00012001,99312.0,99311.0,0.30354254]
[1732261614312,0.05040801,99312.0,99311.0,0.30354254]
[1732261615914,0.00064,99319.0,99311.0,0.30354254]
[1732261616214,0.00064,99319.0,99318.0,0.30216]
[1732261616215,0.411084,99319.0,99318.0,0.30216]
[1732261616412,0.411084,99319.0,99318.0,0.3049248]
[1732261616804,0.050284,99319.0,99318.0,0.3049248]
[1732261617113,0.050284,99319.0,99318.0,0.0028048]
[1732261619718,0.3608,99320.0,99319.0,0.050284]
[1732261620024,0.3608,99320.0,99319.0,0.050324]
[1732261620205,0.411084,99320.0,99319.0,0.050324]
[1732261620409,0.411084,99320.0,99319.0,0.0530888]
[1732261621910,0.411084,99320.0,99319.0,0.0028048]
[1732261622713,0.411084,99320.0,99319.0,0.00418727]
[1732261623307,0.411084,99320.0,99319.0,0.05447127]
[1732261623513,0.3608,99320.0,99319.0,0.35659127]
[1732261624722,0.411084,99320.0,99319.0,0.30630727]
[1732261625118,0.050284,99320.0,99319.0,0.30630727]
[1732261629025,0.050284,99320.0,99319.0,0.30768953]
[1732261630020,0.411084,99320.0,99319.0,0.30768953]
[1732261631625,0.411084,99320.0,99319.0,0.00556953]
[1732261634328,0.411084,99320.0,99319.0,0.30768953]
[1732261635220,0.411084,99320.0,99319.0,0.30907199]
[1732261641328,0.411084,99320.0,99319.0,0.30216]
[1732261641518,0.411084,99320.0,99319.0,0.30990576]
[1732261646227,0.411084,99320.0,99319.0,0.00778576]
[1732261646531,0.050294,99300.0,99297.0,0.0094]
[1732261646728,0.050295,99298.0,99297.0,0.00052]
[1732261646928,0.050334,99300.0,99299.0,0.30212]
[1732261648036,0.050334,99300.0,99299.0,0.30216]
[1732261651333,0.411134,99300.0,99299.0,4e-05]
[1732261651541,0.050303,99282.0,99281.0,0.0023]
[1732261651838,0.050309,99271.0,99270.0,0.0852]
[1732261652038,0.08290585,99280.0,99270.0,0.0852]
[1732261652341,0.050389,99271.0,99270.0,0.0852]
[1732261652838,0.050389,99271.0,99270.0,0.38732]
[1732261656447,0.050389,99271.0,99270.0,0.30212]
[1732261661550,8e-05,99271.0,99270.0,0.30212]
[1732261661735,8e-05,99271.0,99270.0,0.352429]
[1732261664156,8e-05,99271.0,99270.0,0.30212]
[1732261664357,0.050389,99271.0,99270.0,0.30212]
[1732261667657,0.411189,99271.0,99270.0,0.30212]
[1732261668154,0.050389,99271.0,99270.0,0.30212]
[1732261670753,0.08278,99271.0,99256.0,0.37072]
[1732261670948,0.050313,99263.0,99256.0,0.3608]
[1732261671253,8e-05,99257.0,99256.0,0.411116]
[1732261671658,8e-05,99257.0,99256.0,0.713236]
[1732261675560,8e-05,99257.0,99256.0,0.66292]
[1732261675765,8e-05,99257.0,99256.0,0.66192]
[1732261676167,8e-05,99257.0,99256.0,0.30212]
[1732261676374,0.050396,99257.0,99256.0,0.30212]
[1732261676562,8e-05,99257.0,99246.0,0.3608]
[1732261676769,0.050318,99254.0,99252.0,0.30212]
[1732261677073,0.050318,99253.0,99252.0,0.30212]
[1732261677368,0.3608,99256.0,99252.0,0.30212]
[1732261678159,0.050316,99257.0,99252.0,0.30212]
[1732261678570,0.050316,99257.0,99256.0,4e-05]
[1732261680760,0.050325,99239.0,99238.0,0.0023]
[1732261680977,0.050319,99251.0,99250.0,0.30212]
[1732261681173,0.411119,99251.0,99237.0,0.3608]
[1732261681366,0.2487,99250.0,99243.0,0.30212]
[1732261681566,0.050324,99241.0,99235.0,0.0023]
[1732261681874,0.050334,99221.0,99220.0,0.0101]
[1732261682068,0.050334,99221.0,99218.0,0.3808999]
[1732261682069,0.050335,99219.0,99218.0,0.0206199]
[1732261682274,0.3608,99226.0,99208.0,0.3614]
[1732261682464,0.05034,99209.0,99208.0,0.3608]
[1732261683062,0.3608,99217.0,99208.0,0.3608]
[1732261683574,0.3608,99217.0,99205.0,0.0835]
[1732261683575,0.411136,99217.0,99216.0,4e-05]
[1732261684670,0.050344,99201.0,99189.0,0.05035]
[1732261685176,0.05050399,99201.0,99187.0,0.0871]
[1732261686373,0.05050399,99201.0,99188.0,0.050351]
[1732261686574,0.05050399,99201.0,99191.0,0.050349]
[1732261686776,0.05050399,99201.0,99187.0,0.0871]
[1732261687281,0.05050399,99201.0,99187.0,0.137451]
[1732261687869,0.05050399,99201.0,99197.0,0.02012225]
[1732261688070,0.05050399,99201.0,99187.0,0.137451]
[1732261688270,0.05050399,99201.0,99187.0,0.0871]
[1732261688571,0.05050399,99201.0,99188.0,0.050351]
[1732261689072,0.05050399,99201.0,99187.0,0.0871]
[1732261689575,0.05050399,99201.0,99188.0,0.050351]
[1732261689778,0.05050399,99201.0,99191.0,0.050349]
[1732261690074,0.05050399,99201.0,99192.0,0.050349]
[1732261690270,0.05050399,99201.0,99187.0,0.0871]
[1732261690673,0.05050399,99201.0,99187.0,0.137451]
[1732261690973,0.05050399,99201.0,99187.0,0.0871]
[1732261691777,0.00015999,99201.0,99186.0,0.0704519]
[1732261691979,0.050348,99195.0,99186.0,0.0704519]
[1732261692172,0.050348,99195.0,99173.0,0.10124]
[1732261692173,0.050355,99180.0,99169.0,0.05036]
[1732261692373,0.0882,99179.0,99167.0,0.3608]
[1732261692569,1.5047,99194.0,99169.0,0.12662932]
[1732261692570,0.00015999,99170.0,99169.0,0.12662932]
[1732261692768,0.050351,99188.0,99174.0,0.050358]
[1732261692977,0.050351,99188.0,99181.0,0.01393206]
[1732261693184,0.050351,99188.0,99187.0,4e-05]
[1732261693481,0.411151,99188.0,99187.0,4e-05]
[1732261694075,0.411151,99188.0,99187.0,0.01397206]
[1732261694076,0.771951,99188.0,99187.0,0.01397206]
[1732261694270,1.02404,99188.0,99168.0,0.02012498]
[1732261694470,0.3608,99188.0,99168.0,0.02012498]
[1732261694875,0.050359,99172.0,99168.0,0.02012498]
[1732261695072,0.050359,99172.0,99160.0,0.10124]
[1732261695280,0.3608,99179.0,99160.0,0.10124]
[1732261695482,0.3608,99179.0,99154.0,0.0869]
[1732261695483,0.0002,99161.0,99154.0,0.0869]
[1732261695672,0.0002,99161.0,99157.0,0.050367]
[1732261695877,0.0047,99177.0,99157.0,0.050367]
[1732261696072,0.3608,99179.0,99160.0,0.02012988]
[1732261696275,0.3608,99179.0,99171.0,0.050359]
[1732261696482,0.3608,99179.0,99172.0,0.0841]
[1732261696785,0.3608,99179.0,99173.0,0.050358]
[1732261696974,0.0047,99194.0,99177.0,0.3608]
[1732261697175,0.3608,99196.0,99178.0,0.0844]
[1732261697372,0.050348,99193.0,99187.0,4e-05]
[1732261697576,0.3608,99196.0,99187.0,4e-05]
[1732261697886,0.050345,99199.0,99195.0,4e-05]
[1732261698077,0.47144,99207.0,99195.0,4e-05]
[1732261698078,0.36140001,99207.0,99195.0,4e-05]
[1732261698276,0.050343,99203.0,99198.0,4e-05]
[1732261698887,0.050344,99202.0,99198.0,4e-05]
[1732261699081,0.050342,99206.0,99198.0,4e-05]
[1732261699285,0.050344,99202.0,99198.0,4e-05]
[1732261699679,0.3608,99207.0,99198.0,4e-05]
[1732261699883,0.050345,99200.0,99198.0,4e-05]
[1732261700081,0.050345,99199.0,99198.0,4e-05]
[1732261700585,0.411145,99199.0,99198.0,4e-05]
[1732261706496,0.513545,99199.0,99198.0,4e-05]
[1732261707996,0.76564,99199.0,99181.0,0.0023]
[1732261708194,0.050356,99177.0,99173.0,0.0023]
[1732261708393,0.3608,99182.0,99163.0,0.3608]
[1732261708394,0.050362,99168.0,99167.0,0.050361]
[1732261708691,0.050602,99168.0,99167.0,0.05551672]
[1732261709092,0.050602,99168.0,99167.0,0.00515572]
[1732261709299,0.050602,99168.0,99163.0,0.3608]
[1732261709300,0.050363,99164.0,99163.0,0.3608]
[1732261709496,0.050601,99168.0,99163.0,0.3608]
[1732261709798,0.00024,99164.0,99163.0,0.36593202]
[1732261710093,0.050603,99164.0,99163.0,0.36593202]
[1732261710498,0.050603,99164.0,99148.0,0.0023]
[1732261710499,0.05037,99151.0,99148.0,0.0023]
[1732261710794,0.00024,99149.0,99148.0,0.00500672]
[1732261710984,0.050373,99145.0,99144.0,0.02012988]
[1732261711190,0.36104,99149.0,99131.0,0.0023]
[1732261711388,0.36104,99149.0,99131.0,0.00505]
[1732261711389,0.133471,99148.0,99131.0,0.00505]
[1732261711591,0.133471,99148.0,99128.0,0.02012988]
[1732261711789,0.133471,99148.0,99131.0,0.3608]
[1732261711991,0.0831,99148.0,99138.0,0.050376]
[1732261712186,0.050374,99142.0,99132.0,0.050379]
[1732261712497,0.050373,99144.0,99135.0,0.050378]
[1732261712697,0.0831,99148.0,99131.0,0.36626029]
[1732261712994,0.0831,99148.0,99139.0,0.050375]
[1732261713201,0.0831,99148.0,99131.0,0.36574029]
[1732261713399,0.12662932,99141.0,99134.0,0.050378]
[1732261713813,0.0831,99148.0,99134.0,0.050378]
[1732261713997,0.050379,99132.0,99131.0,0.00052]
[1732261714196,0.050379,99132.0,99123.0,0.3608]
[1732261714394,0.10244,99140.0,99123.0,0.3608]
[1732261714596,0.3608,99130.0,99123.0,0.3608]
[1732261715097,0.12662932,99133.0,99123.0,0.3608]
[1732261715300,0.17700832,99133.0,99125.0,0.050383]
[1732261715495,0.10244,99135.0,99132.0,4e-05]
[1732261715793,0.10244,99135.0,99134.0,4e-05]
[1732261716000,0.050378,99135.0,99134.0,4e-05]
[1732261716601,0.136578,99135.0,99134.0,4e-05]
[1732261717101,0.050383,99124.0,99123.0,0.3608]
[1732261717301,0.3608,99130.0,99108.0,0.050391]
[1732261717605,0.050385,99120.0,99106.0,0.0889]
[1732261717797,0.050385,99120.0,99110.0,0.05039]
[1732261717997,0.0843,99119.0,99102.0,0.3608]
[1732261718298,0.05039,99111.0,99102.0,0.3608]
[1732261718597,0.00028,99103.0,99102.0,0.3608]
[1732261718804,0.411474,99103.0,99100.0,0.1]
[1732261719097,0.050674,99103.0,99100.0,0.1]
[1732261719300,0.00028,99101.0,99100.0,0.1]
[1732261723199,0.3608,99135.0,99101.0,0.353115]
[1732261723500,0.34406344,99135.0,99122.0,0.050384]
[1732261723698,0.34406344,99135.0,99101.0,0.213295]
[1732261723699,0.050381,99129.0,99111.0,0.0023]
[1732261723895,0.050379,99133.0,99121.0,0.050385]
[1732261724104,0.00060001,99149.0,99130.0,0.3608]
[1732261724297,0.050372,99146.0,99133.0,0.050379]
[1732261724490,0.00060001,99149.0,99148.0,0.00028001]
[1732261724491,0.050371,99149.0,99148.0,0.00028001]
[1732261724697,0.0871,99153.0,99152.0,0.050369]
[1732261725103,0.0823,99160.0,99152.0,0.00028001]
[1732261725405,0.3608,99185.0,99147.0,0.3608]
[1732261725406,0.0869,99164.0,99163.0,0.050364]
[1732261725610,0.0023,99184.0,99167.0,0.050362]
[1732261725611,0.10248,99180.0,99167.0,0.050362]
[1732261725796,0.0869,99182.0,99167.0,0.409072]
[1732261725997,0.10248,99186.0,99167.0,0.40935201]
[1732261726191,0.10248,99190.0,99167.0,0.40935201]
[1732261726897,0.18995406,99180.0,99167.0,0.00028001]
[1732261727098,0.30276,99168.0,99167.0,0.00028001]
[1732261727305,0.050366,99159.0,99147.0,0.02014536]
[1732261727594,0.050366,99158.0,99147.0,0.02014536]
[1732261728099,0.55075406,99160.0,99142.0,0.3608]
[1732261728100,4e-05,99148.0,99142.0,0.3608]
[1732261728495,4e-05,99143.0,99142.0,0.3608]
[1732261729604,4e-05,99143.0,99142.0,0.74174536]
[1732261729810,4e-05,99143.0,99142.0,1.04434536]
[1732261730902,4e-05,99143.0,99142.0,1.12934536]
[1732261732706,4e-05,99143.0,99142.0,1.23182536]
[1732261732910,4e-05,99143.0,99142.0,1.04434536]
[1732261735704,4e-05,99143.0,99142.0,0.74174536]
[1732261736103,4e-05,99143.0,99142.0,0.38094536]
[1732261739913,4e-05,99143.0,99142.0,0.73391936]
[1732261740208,0.136752,99187.0,99142.0,0.73391936]
[1732261740209,0.0023,99173.0,99142.0,0.68094536]
[1732261740411,0.0023,99182.0,99167.0,0.3608]
[1732261740612,0.050601,99168.0,99167.0,0.36084]
[1732261741109,0.050601,99168.0,99167.0,4e-05]
[1732261742099,0.411401,99168.0,99167.0,4e-05]
[1732261742305,0.05037,99151.0,99150.0,0.0023]
[1732261742506,0.41117,99151.0,99133.0,0.0023]
[1732261742710,0.3608,99143.0,99132.0,0.00028001]
[1732261743010,0.41121,99151.0,99132.0,0.00028001]
[1732261743011,4e-05,99133.0,99132.0,0.00028001]
[1732261743398,4e-05,99133.0,99132.0,0.00166528]
[1732261743812,0.050419,99133.0,99132.0,0.00166528]
[1732261746014,4e-05,99133.0,99132.0,0.35468428]
[1732261746208,4e-05,99133.0,99132.0,0.12924428]
[1732261746410,4e-05,99133.0,99132.0,0.43188428]
[1732261747505,0.00024,99168.0,99132.0,0.75680528]
[1732261747705,0.00024,99168.0,99150.0,0.12673986]
[1732261747921,0.00024,99168.0,99165.0,4e-05]
[1732261748216,0.00024,99168.0,99167.0,0.050362]
[1732261748718,0.00024,99168.0,99167.0,0.05174727]
[1732261749812,0.0027,99212.0,99167.0,0.05174727]
[1732261749813,0.0392,99202.0,99167.0,0.30138527]
[1732261750116,0.03771014,99202.0,99198.0,0.3608]
[1732261750316,0.03691014,99202.0,99201.0,0.00027999]
[1732261750512,0.03691014,99202.0,99201.0,0.00166526]
[1732261752108,0.3608,99243.0,99201.0,0.00166526]
[1732261752109,0.18998502,99240.0,99201.0,0.30406526]
[1732261752310,0.18998502,99230.0,99218.0,0.3608]
[1732261752512,0.050336,99217.0,99208.0,0.3608]
[1732261752709,0.050338,99214.0,99198.0,0.47364]
[1732261752914,4e-05,99209.0,99201.0,0.0094]
[1732261753114,0.0015,99202.0,99201.0,0.0094]
[1732261754817,0.0015,99202.0,99201.0,0.059744]
[1732261755426,0.0015,99202.0,99201.0,0.0094]
[1732261755717,0.0015,99202.0,99201.0,0.059744]
[1732261756516,4e-05,99209.0,99201.0,0.74306256]
[1732261756821,4e-05,99209.0,99208.0,0.050341]
[1732261757015,0.0757,99236.0,99225.0,0.050332]
[1732261757221,0.00056001,99237.0,99232.0,0.3608]
[1732261757523,0.3608,99246.0,99235.0,0.00032]
[1732261757718,0.126021,99247.0,99235.0,0.00032]
[1732261758020,0.126021,99247.0,99246.0,0.00032]
[1732261760413,0.0757,99247.0,99246.0,0.00032]
[1732261760712,0.3608,99270.0,99246.0,0.00032]
[1732261760713,0.11284,99264.0,99246.0,0.00032]
[1732261761218,0.050314,99262.0,99251.0,0.3608]
[1732261761617,0.11336001,99266.0,99263.0,0.00032]
[1732261761825,0.050312,99265.0,99263.0,0.00032]
[1732261762117,0.11284,99266.0,99246.0,0.00972]
[1732261762325,0.050319,99251.0,99246.0,0.00032]
[1732261762526,4e-05,99247.0,99246.0,0.00032]
[1732261764011,0.050361,99247.0,99246.0,0.00032]
[1732261765412,0.050361,99247.0,99246.0,0.00162]
[1732261765617,0.411161,99247.0,99246.0,0.00162]
[1732261766428,0.050361,99247.0,99246.0,0.00162]
[1732261766822,0.411161,99247.0,99246.0,0.00162]
[1732261767218,0.713441,99247.0,99246.0,0.00162]
[1732261768423,0.411161,99247.0,99246.0,0.00162]
[1732261768624,0.36084,99247.0,99246.0,0.00162]
[1732261770132,4e-05,99247.0,99246.0,0.051941]
[1732261771626,0.3608,99266.0,99260.0,0.050314]
[1732261772034,0.3608,99266.0,99265.0,0.00035999]
[1732261772425,0.3608,99266.0,99265.0,0.00165999]
[1732261773327,0.050309,99271.0,99265.0,0.00165999]
[1732261773628,0.050309,99270.0,99267.0,0.0013]
[1732261773927,0.050309,99270.0,99268.0,0.00035999]
[1732261774122,0.3608,99274.0,99268.0,0.00035999]
[1732261774629,0.050308,99272.0,99268.0,0.00165999]
[1732261774822,0.050309,99271.0,99268.0,0.00165999]
[1732261775028,0.050305,99279.0,99268.0,0.00165999]
[1732261775224,0.050304,99280.0,99271.0,0.3608]
[1732261775533,0.050303,99282.0,99279.0,0.36115999]
[1732261776030,0.17277889,99281.0,99280.0,0.00035999]
[1732261776730,0.17277889,99281.0,99280.0,0.00165999]
[1732261780632,0.050304,99281.0,99280.0,0.00165999]
[1732261781134,0.411104,99281.0,99280.0,0.00165999]
[1732261781640,0.3608,99281.0,99280.0,0.00165999]
[1732261782046,0.3608,99281.0,99280.0,0.05196399]
[1732261782339,0.3608,99285.0,99280.0,0.00165999]
[1732261782641,0.3608,99285.0,99282.0,0.051603]
[1732261782841,0.3608,99285.0,99282.0,0.0013]
[1732261783231,0.3608,99285.0,99284.0,0.00035999]
[1732261783629,0.3608,99285.0,99284.0,0.00165999]
[1732261785929,0.3608,99294.0,99284.0,0.00165999]
[1732261786131,0.0503,99290.0,99284.0,0.00165999]
[1732261786334,0.3608,99294.0,99284.0,0.0013]
[1732261786528,0.411102,99285.0,99284.0,0.0013]
[1732261787027,0.713262,99285.0,99284.0,0.0013]
[1732261787232,0.411102,99285.0,99284.0,0.0013]
[1732261789434,0.050302,99285.0,99284.0,0.0013]
[1732261791839,0.22642929,99300.0,99284.0,0.0013]
[1732261792141,0.0503,99288.0,99284.0,0.0013]
[1732261792441,0.3608,99294.0,99284.0,0.0013]
[1732261792442,0.0503,99289.0,99284.0,0.0013]
[1732261792638,0.0503,99288.0,99281.0,0.3608]
[1732261792946,0.0503,99288.0,99286.0,0.0013]
[1732261793444,0.050301,99287.0,99286.0,0.0013]
[1732261795041,0.352461,99287.0,99286.0,0.0013]
[1732261795243,0.050301,99287.0,99286.0,0.0013]
[1732261795833,0.352461,99287.0,99286.0,0.0013]
[1732261796039,0.352461,99287.0,99270.0,0.0023]
[1732261796362,0.050311,99267.0,99264.0,0.050312]
[1732261796555,0.050311,99266.0,99264.0,0.050312]
[1732261796848,0.3608,99272.0,99253.0,0.01326262]
[1732261797039,0.3608,99272.0,99254.0,0.06357962]
[1732261797040,0.050315,99259.0,99254.0,0.06357962]
[1732261797234,0.050315,99259.0,99255.0,0.01326262]
[1732261797444,0.050315,99259.0,99256.0,0.06357862]
[1732261797638,0.050309,99271.0,99257.0,0.01426262]
[1732261797834,0.050315,99258.0,99257.0,0.001]
[1732261798038,0.050309,99270.0,99257.0,0.01474723]
[1732261798337,0.050315,99259.0,99258.0,0.01374723]
[1732261798538,0.050315,99259.0,99258.0,0.01474723]
[1732261798739,0.3608,99260.0,99258.0,0.01474723]
[1732261798934,0.3608,99260.0,99259.0,0.01374723]
[1732261799136,0.3608,99260.0,99258.0,0.001]
[1732261799541,4e-05,99259.0,99258.0,0.001]
[1732261800341,4e-05,99259.0,99258.0,0.051315]
[1732261800543,4e-05,99259.0,99258.0,0.001]
[1732261800854,4e-05,99259.0,99258.0,0.051315]
[1732261801449,4e-05,99259.0,99258.0,0.001]
[1732261801849,4e-05,99259.0,99258.0,0.051315]
[1732261802150,4e-05,99259.0,99258.0,0.06506223]
[1732261803144,4e-05,99259.0,99258.0,0.01474723]
[1732261803949,4e-05,99259.0,99258.0,0.06506223]
[1732261804554,0.3608,99272.0,99263.0,0.050313]
[1732261804747,0.050298,99292.0,99255.0,0.1152]
[1732261804748,0.050303,99282.0,99268.0,0.05031]
[1732261804947,0.3608,99283.0,99271.0,0.00039999]
[1732261805142,0.3608,99283.0,99272.0,0.01374723]
[1732261805348,0.050303,99282.0,99273.0,0.08164723]
[1732261805558,0.050303,99282.0,99274.0,0.0646]
[1732261805745,0.050303,99282.0,99278.0,0.001]
[1732261806051,0.050303,99282.0,99279.0,0.01374723]
[1732261806252,0.3608,99283.0,99280.0,0.01374723]
[1732261806549,0.0738,99299.0,99282.0,0.36119999]
[1732261806751,0.0738,99299.0,99289.0,0.001]
[1732261806752,0.050298,99293.0,99289.0,0.001]
[1732261807254,0.050298,99292.0,99289.0,0.001]
[1732261807453,0.43426001,99296.0,99289.0,0.001]
[1732261807648,0.050299,99290.0,99289.0,0.001]
[1732261809849,0.050299,99290.0,99289.0,0.01474723]
[1732261810558,0.43422001,99296.0,99289.0,0.001]
[1732261810559,0.42796438,99296.0,99289.0,0.001]
[1732261810764,0.3608,99294.0,99292.0,0.001]
[1732261810954,0.050306,99276.0,99275.0,0.0023]
[1732261811159,0.411098,99294.0,99258.0,0.184915]
[1732261811160,0.05031,99269.0,99258.0,0.184915]
[1732261811374,0.41111,99269.0,99259.0,0.050315]
[1732261811878,0.3608,99269.0,99258.0,0.1346]
[1732261812378,4e-05,99259.0,99258.0,0.1346]
[1732261812677,0.3608,99269.0,99258.0,0.1346]
[1732261812871,0.05031,99268.0,99258.0,0.0688]
[1732261813067,0.050315,99259.0,99258.0,0.001]
[1732261813466,0.352555,99259.0,99258.0,0.001]
[1732261813680,0.050321,99247.0,99244.0,0.00167]
[1732261813873,0.411121,99247.0,99244.0,0.00167]
[1732261814067,0.411161,99247.0,99244.0,0.00167]
[1732261814469,0.713441,99247.0,99244.0,0.00167]
[1732261814674,0.65685721,99247.0,99244.0,0.00167]
[1732261815071,0.70717821,99247.0,99244.0,0.00167]
[1732261815374,0.050322,99245.0,99244.0,0.00167]
[1732261815579,0.050331,99228.0,99227.0,0.0023]
[1732261815768,0.050332,99226.0,99222.0,0.02011119]
[1732261815978,0.3608,99232.0,99212.0,0.0094]
[1732261815979,0.3608,99224.0,99212.0,0.0094]
[1732261816274,0.3608,99224.0,99220.0,0.050334]
[1732261816478,0.050333,99223.0,99220.0,0.050334]
[1732261816678,0.050335,99220.0,99215.0,0.050337]
[1732261816885,0.3608,99224.0,99212.0,0.0094]
[1732261817175,0.411133,99224.0,99223.0,0.00011999]